[Event "Early-Titled-Tuesday-Blitz-October-24-2023"]
[Site "Chess.com"]
[Date "2023.10.24"]
[Round "7"]
[White "Malev212"]
[Black "AndrewB92"]
[Result "1-0"]
[WhiteElo "2633"]
[BlackElo "2472"]
[TimeControl "180+1"]
[EndTime "9:15:37 PDT"]
[Termination "Malev212 won on time"]

1. e4 {[%clk 0:03:00.9]} 1... c5 {[%clk 0:02:59.9]} 2. Nf3 {[%clk 0:02:58.5]}
2... Nc6 {[%clk 0:03:00]} 3. Bb5 {[%clk 0:02:57.2]} 3... g6 {[%clk 0:02:59.8]}
4. O-O {[%clk 0:02:56.8]} 4... Bg7 {[%clk 0:02:59.9]} 5. Re1 {[%clk 0:02:56.7]}
5... Qb6 {[%clk 0:02:59.9]} 6. Nc3 {[%clk 0:02:55.1]} 6... Bxc3 {[%clk
0:02:53.8]} 7. Bxc6 {[%clk 0:02:52.3]} 7... Bg7 {[%clk 0:02:42]} 8. Ba4 {[%clk
0:02:50.1]} 8... Nf6 {[%clk 0:02:37.3]} 9. c4 {[%clk 0:02:46.1]} 9... O-O {[%clk
0:02:35.8]} 10. e5 {[%clk 0:02:30.8]} 10... Ne8 {[%clk 0:02:24.8]} 11. d4 {[%clk
0:01:48.4]} 11... cxd4 {[%clk 0:02:24.1]} 12. Qxd4 {[%clk 0:01:46.9]} 12... Qxd4
{[%clk 0:02:22.4]} 13. Nxd4 {[%clk 0:01:46.7]} 13... d6 {[%clk 0:02:14.4]} 14.
Bf4 {[%clk 0:01:35.3]} 14... dxe5 {[%clk 0:02:09.3]} 15. Bxe5 {[%clk 0:01:34.3]}
15... Nf6 {[%clk 0:01:58.4]} 16. Rad1 {[%clk 0:01:25.3]} 16... a6 {[%clk
0:01:22.8]} 17. h3 {[%clk 0:01:19.1]} 17... b5 {[%clk 0:01:13.7]} 18. cxb5
{[%clk 0:01:15]} 18... axb5 {[%clk 0:01:13.8]} 19. Bb3 {[%clk 0:01:14.8]} 19...
Bd7 {[%clk 0:01:00]} 20. a3 {[%clk 0:00:51.4]} 20... Rfc8 {[%clk 0:00:56.8]} 21.
Rc1 {[%clk 0:00:49.3]} 21... Be8 {[%clk 0:00:48.7]} 22. g4 {[%clk 0:00:43.6]}
22... Rxc1 {[%clk 0:00:30.4]} 23. Rxc1 {[%clk 0:00:42.3]} 23... e6 {[%clk
0:00:29.6]} 24. f4 {[%clk 0:00:29.8]} 24... Nd7 {[%clk 0:00:20.5]} 25. Bxg7
{[%clk 0:00:28.5]} 25... Kxg7 {[%clk 0:00:20.3]} 26. Kf2 {[%clk 0:00:27.9]}
26... Rb8 {[%clk 0:00:16.5]} 27. Rc7 {[%clk 0:00:26.6]} 27... Kf8 {[%clk
0:00:15.1]} 28. Ke3 {[%clk 0:00:25.4]} 28... Nb6 {[%clk 0:00:15]} 29. f5 {[%clk
0:00:22.5]} 29... gxf5 {[%clk 0:00:14.7]} 30. gxf5 {[%clk 0:00:22.4]} 30... e5
{[%clk 0:00:11.6]} 31. Nc6 {[%clk 0:00:15.7]} 31... Bxc6 {[%clk 0:00:10]} 32.
Rxc6 {[%clk 0:00:15.1]} 32... Nc4+ {[%clk 0:00:08.5]} 33. Bxc4 {[%clk
0:00:10.8]} 33... bxc4 {[%clk 0:00:08.5]} 34. Rxc4 {[%clk 0:00:09.4]} 34... Rxb2
{[%clk 0:00:08.8]} 35. a4 {[%clk 0:00:08.8]} 35... f6 {[%clk 0:00:07.9]} 36. Ke4
{[%clk 0:00:08.4]} 36... Rd2 {[%clk 0:00:07.3]} 37. a5 {[%clk 0:00:06.9]} 37...
h5 {[%clk 0:00:05.7]} 38. Ra4 {[%clk 0:00:06.3]} 38... Rd7 {[%clk 0:00:05.3]}
39. a6 {[%clk 0:00:06.2]} 39... Ra7 {[%clk 0:00:05.7]} 40. Kd5 {[%clk
0:00:06.7]} 40... Kg7 {[%clk 0:00:05.8]} 41. Kc6 {[%clk 0:00:06.8]} 41... Kh6
{[%clk 0:00:04.8]} 42. h4 {[%clk 0:00:06.2]} 42... e4 {[%clk 0:00:03.8]} 43. Kb6
{[%clk 0:00:06.2]} 43... Ra8 {[%clk 0:00:01.7]} 44. Kb7 {[%clk 0:00:06.2]} 44...
Re8 {[%clk 0:00:01.6]} 45. a7 {[%clk 0:00:06.3]} 1-0

[Event "Early-Titled-Tuesday-Blitz-October-24-2023"]
[Site "Chess.com"]
[Date "2023.10.24"]
[Round "7"]
[White "Nekoo04"]
[Black "Mystery2007"]
[Result "1-0"]
[WhiteElo "2298"]
[BlackElo "2439"]
[TimeControl "180+1"]
[EndTime "9:15:37 PDT"]
[Termination "Nekoo04 won on time"]

1. d4 {[%clk 0:03:00.4]} 1... a6 {[%clk 0:03:00.5]} 2. c4 {[%clk 0:02:59.3]}
2... c5 {[%clk 0:02:58.4]} 3. d5 {[%clk 0:02:59.1]} 3... d6 {[%clk 0:02:58.4]}
4. Nc3 {[%clk 0:02:58.4]} 4... g6 {[%clk 0:02:59]} 5. e4 {[%clk 0:02:57.5]} 5...
Bg7 {[%clk 0:02:59.6]} 6. Nf3 {[%clk 0:02:52.5]} 6... Nf6 {[%clk 0:02:59.7]} 7.
Be2 {[%clk 0:02:52]} 7... e6 {[%clk 0:03:00.1]} 8. Bg5 {[%clk 0:02:51]} 8... h6
{[%clk 0:02:55.4]} 9. Bh4 {[%clk 0:02:50.8]} 9... g5 {[%clk 0:02:54.8]} 10. Bg3
{[%clk 0:02:50.8]} 10... e5 {[%clk 0:02:55.2]} 11. h4 {[%clk 0:02:49.7]} 11...
Nh5 {[%clk 0:02:39.5]} 12. hxg5 {[%clk 0:02:45.6]} 12... Nxg3 {[%clk 0:02:38.6]}
13. fxg3 {[%clk 0:02:46]} 13... hxg5 {[%clk 0:02:38.9]} 14. Rxh8+ {[%clk
0:02:46.5]} 14... Bxh8 {[%clk 0:02:39.8]} 15. Qd2 {[%clk 0:02:47]} 15... Bf6
{[%clk 0:02:38.4]} 16. O-O-O {[%clk 0:02:44.9]} 16... g4 {[%clk 0:02:33.4]} 17.
Rh1 {[%clk 0:02:23.1]} 17... gxf3 {[%clk 0:02:31.6]} 18. gxf3 {[%clk 0:02:24]}
18... Kd7 {[%clk 0:02:22.9]} 19. Rh7 {[%clk 0:02:21.2]} 19... Qg8 {[%clk
0:02:20.7]} 20. Rh3 {[%clk 0:02:14]} 20... Ke7 {[%clk 0:02:15.1]} 21. Rh1 {[%clk
0:02:05.9]} 21... Qxg3 {[%clk 0:02:14.4]} 22. Kc2 {[%clk 0:02:06.3]} 22... Bg5
{[%clk 0:02:13.8]} 23. Qd1 {[%clk 0:02:05.5]} 23... Qf4 {[%clk 0:02:05.2]} 24.
Qg1 {[%clk 0:01:54]} 24... b5 {[%clk 0:01:53]} 25. Rh5 {[%clk 0:01:47.3]} 25...
Qd2+ {[%clk 0:01:46.6]} 26. Kb3 {[%clk 0:01:46.5]} 26... Bf6 {[%clk 0:01:34.9]}
27. Qg8 {[%clk 0:01:38.6]} 27... bxc4+ {[%clk 0:01:25.5]} 28. Bxc4 {[%clk
0:01:36.2]} 28... Nd7 {[%clk 0:01:16.9]} 29. Rh7 {[%clk 0:01:33.4]} 29... Rb8+
{[%clk 0:01:16.7]} 30. Bb5 {[%clk 0:01:18]} 30... Bg7 {[%clk 0:00:37.4]} 31.
Rxg7 {[%clk 0:01:07.6]} 31... Qf4 {[%clk 0:00:37]} 32. Rg4 {[%clk 0:00:38.2]}
32... Qf6 {[%clk 0:00:32.3]} 33. Rg5 {[%clk 0:00:29.1]} 33... axb5 {[%clk
0:00:25.4]} 34. Rf5 {[%clk 0:00:16.9]} 34... Qg6 {[%clk 0:00:24.9]} 35. Qh8
{[%clk 0:00:16.8]} 35... c4+ {[%clk 0:00:21.1]} 36. Kb4 {[%clk 0:00:15.4]} 36...
Nc5 {[%clk 0:00:10.5]} 37. Qh4+ {[%clk 0:00:12.9]} 37... Ke8 {[%clk 0:00:06.4]}
38. Rg5 {[%clk 0:00:09.2]} 38... Qf6 {[%clk 0:00:02.4]} 39. Rg8+ {[%clk
0:00:08.8]} 39... Ke7 {[%clk 0:00:03.1]} 40. Re8+ {[%clk 0:00:09]} 40... Kxe8
{[%clk 0:00:03.8]} 41. Qxf6 {[%clk 0:00:09.6]} 41... Nd3+ {[%clk 0:00:03.4]} 42.
Ka5 {[%clk 0:00:09.5]} 42... b4 {[%clk 0:00:02.9]} 43. Nb5 {[%clk 0:00:09.2]}
43... Ra8+ {[%clk 0:00:01.3]} 44. Kb6 {[%clk 0:00:09.6]} 44... Rb8+ {[%clk
0:00:01.5]} 45. Kc7 {[%clk 0:00:09.3]} 45... Rb7+ {[%clk 0:00:01.3]} 46. Kxc8
{[%clk 0:00:09.8]} 1-0

[Event "Early-Titled-Tuesday-Blitz-October-24-2023"]
[Site "Chess.com"]
[Date "2023.10.24"]
[Round "7"]
[White "PenguiinQueen"]
[Black "Kotofeyca"]
[Result "1-0"]
[WhiteElo "2269"]
[BlackElo "2392"]
[TimeControl "180+1"]
[EndTime "9:15:37 PDT"]
[Termination "PenguiinQueen won by checkmate"]

1. e4 {[%clk 0:02:58.2]} 1... c5 {[%clk 0:02:59.7]} 2. Nf3 {[%clk 0:02:57.4]}
2... d6 {[%clk 0:03:00.1]} 3. d4 {[%clk 0:02:57.3]} 3... cxd4 {[%clk 0:03:01]}
4. Nxd4 {[%clk 0:02:57.8]} 4... Nf6 {[%clk 0:03:01.7]} 5. Nc3 {[%clk 0:02:57.9]}
5... a6 {[%clk 0:03:02.3]} 6. Bg5 {[%clk 0:02:55.4]} 6... e6 {[%clk 0:03:02.5]}
7. f4 {[%clk 0:02:55.7]} 7... Qb6 {[%clk 0:03:03]} 8. Qd3 {[%clk 0:02:47]} 8...
Nc6 {[%clk 0:03:02.8]} 9. O-O-O {[%clk 0:02:44.9]} 9... Bd7 {[%clk 0:03:02.2]}
10. Be2 {[%clk 0:02:22.9]} 10... Nxd4 {[%clk 0:02:57.3]} 11. Qxd4 {[%clk
0:02:21.8]} 11... Qxd4 {[%clk 0:02:58.2]} 12. Rxd4 {[%clk 0:02:21.8]} 12... Bc6
{[%clk 0:02:58.1]} 13. Bxf6 {[%clk 0:02:09.6]} 13... gxf6 {[%clk 0:02:59]} 14.
Bh5 {[%clk 0:02:09.4]} 14... Bh6 {[%clk 0:02:28.1]} 15. g3 {[%clk 0:02:07.7]}
15... e5 {[%clk 0:02:28]} 16. Rxd6 {[%clk 0:02:03.9]} 16... Ke7 {[%clk
0:02:12.3]} 17. Rd3 {[%clk 0:01:45]} 17... exf4 {[%clk 0:02:11.8]} 18. Kb1
{[%clk 0:01:42]} 18... Rad8 {[%clk 0:01:51.9]} 19. gxf4 {[%clk 0:01:33.7]} 19...
Bxf4 {[%clk 0:01:47.7]} 20. Nd5+ {[%clk 0:01:29.2]} 20... Bxd5 {[%clk
0:01:45.7]} 21. exd5 {[%clk 0:01:29.6]} 21... Rhg8 {[%clk 0:01:33.4]} 22. a4
{[%clk 0:01:12.7]} 22... Rg5 {[%clk 0:01:31.4]} 23. Bf3 {[%clk 0:01:11.3]} 23...
a5 {[%clk 0:01:25.4]} 24. Rb3 {[%clk 0:01:05.1]} 24... Rd7 {[%clk 0:01:23.2]}
25. Rb5 {[%clk 0:01:02.1]} 25... Re5 {[%clk 0:00:42.9]} 26. h4 {[%clk
0:00:52.7]} 26... Re3 {[%clk 0:00:40.6]} 27. Rf1 {[%clk 0:00:51.7]} 27... Kd6
{[%clk 0:00:25.3]} 28. Rxa5 {[%clk 0:00:46.8]} 28... Rc7 {[%clk 0:00:22.1]} 29.
Rb5 {[%clk 0:00:39.3]} 29... Bg3 {[%clk 0:00:19.7]} 30. h5 {[%clk 0:00:34.6]}
30... Be5 {[%clk 0:00:19.2]} 31. a5 {[%clk 0:00:27.1]} 31... Rc5 {[%clk
0:00:16]} 32. Rb6+ {[%clk 0:00:23.1]} 32... Kc7 {[%clk 0:00:13.8]} 33. d6+
{[%clk 0:00:20]} 33... Bxd6 {[%clk 0:00:12.4]} 34. Rxb7+ {[%clk 0:00:20]} 34...
Kc8 {[%clk 0:00:13]} 35. Rxf7 {[%clk 0:00:18.3]} 35... Be5 {[%clk 0:00:12.3]}
36. Bg4+ {[%clk 0:00:15.8]} 36... Kb8 {[%clk 0:00:11.8]} 37. a6 {[%clk
0:00:14.9]} 37... Rb5 {[%clk 0:00:10.7]} 38. Rb7+ {[%clk 0:00:13.9]} 38... Ka8
{[%clk 0:00:10.6]} 39. Rxb5 {[%clk 0:00:13.4]} 39... Ka7 {[%clk 0:00:11]} 40.
Rb7+ {[%clk 0:00:12.8]} 40... Kxa6 {[%clk 0:00:11.3]} 41. Rxh7 {[%clk
0:00:13.3]} 41... Re4 {[%clk 0:00:11.2]} 42. Bf5 {[%clk 0:00:12.9]} 42... Rb4
{[%clk 0:00:11.4]} 43. Bd3+ {[%clk 0:00:13.1]} 43... Kb6 {[%clk 0:00:10.3]} 44.
b3 {[%clk 0:00:10.5]} 44... Kc6 {[%clk 0:00:09.3]} 45. Kc1 {[%clk 0:00:10.3]}
45... Bc3 {[%clk 0:00:08]} 46. Kd1 {[%clk 0:00:10.4]} 46... Rh4 {[%clk
0:00:07.3]} 47. Ke2 {[%clk 0:00:09.9]} 47... Kd5 {[%clk 0:00:07.4]} 48. Rf5+
{[%clk 0:00:09.6]} 48... Kd4 {[%clk 0:00:06.4]} 49. Rd7# {[%clk 0:00:09.7]} 1-0

[Event "Early-Titled-Tuesday-Blitz-October-24-2023"]
[Site "Chess.com"]
[Date "2023.10.24"]
[Round "7"]
[White "Resignify"]
[Black "ural58"]
[Result "1-0"]
[WhiteElo "2313"]
[BlackElo "2514"]
[TimeControl "180+1"]
[EndTime "9:15:40 PDT"]
[Termination "Resignify won by resignation"]

1. e4 {[%clk 0:03:00.9]} 1... d5 {[%clk 0:02:56.6]} 2. exd5 {[%clk 0:03:00.5]}
2... Qxd5 {[%clk 0:02:51.7]} 3. Nc3 {[%clk 0:03:00.8]} 3... Qd6 {[%clk 0:02:51]}
4. d4 {[%clk 0:02:59.3]} 4... c6 {[%clk 0:02:49.9]} 5. g3 {[%clk 0:02:51.3]}
5... Nf6 {[%clk 0:02:46.8]} 6. Bf4 {[%clk 0:02:50.4]} 6... Qb4 {[%clk
0:02:44.9]} 7. a3 {[%clk 0:02:43.2]} 7... Qa5 {[%clk 0:02:42.6]} 8. Bg2 {[%clk
0:02:39.6]} 8... Bg4 {[%clk 0:02:40.6]} 9. Ne2 {[%clk 0:02:37.2]} 9... e6 {[%clk
0:02:39.4]} 10. O-O {[%clk 0:02:36.1]} 10... Nbd7 {[%clk 0:02:38.6]} 11. b4
{[%clk 0:02:21.3]} 11... Qh5 {[%clk 0:02:28]} 12. f3 {[%clk 0:02:16.5]} 12...
Bh3 {[%clk 0:02:28]} 13. g4 {[%clk 0:02:09.3]} 13... Qh4 {[%clk 0:02:27.3]} 14.
Bg3 {[%clk 0:01:15.1]} 14... Qh6 {[%clk 0:02:26.1]} 15. g5 {[%clk 0:01:05.8]}
15... Qxg5 {[%clk 0:02:26]} 16. Bxh3 {[%clk 0:01:05.7]} 16... h5 {[%clk
0:02:25.7]} 17. f4 {[%clk 0:01:00.4]} 17... Qh6 {[%clk 0:02:20.8]} 18. Bh4
{[%clk 0:00:57.8]} 18... Ng4 {[%clk 0:02:18.2]} 19. Qd3 {[%clk 0:00:51.7]} 19...
f5 {[%clk 0:02:12.5]} 20. Bg5 {[%clk 0:00:50.6]} 20... Qg6 {[%clk 0:02:11.6]}
21. Rae1 {[%clk 0:00:44.4]} 21... Be7 {[%clk 0:02:09.8]} 22. Bg2 {[%clk
0:00:24.9]} 22... Bxg5 {[%clk 0:02:07.4]} 23. fxg5 {[%clk 0:00:25.8]} 23... Qxg5
{[%clk 0:02:07.6]} 24. Nf4 {[%clk 0:00:20.7]} 24... Rh6 {[%clk 0:01:52]} 25.
Nxe6 {[%clk 0:00:19.8]} 25... Qh4 {[%clk 0:01:51.6]} 26. h3 {[%clk 0:00:18.2]}
26... Kf7 {[%clk 0:01:43.3]} 27. Qxf5+ {[%clk 0:00:03.9]} 27... Ndf6 {[%clk
0:01:43.4]} 28. Ng5+ {[%clk 0:00:03.9]} 28... Kg8 {[%clk 0:01:42.6]} 29. Qf4
{[%clk 0:00:02.6]} 29... Rf8 {[%clk 0:01:30]} 30. Nf3 {[%clk 0:00:02.9]} 30...
Qxe1 {[%clk 0:01:13.8]} 31. Rxe1 {[%clk 0:00:02.8]} 31... Nd5 {[%clk 0:01:14.7]}
32. Nxd5 {[%clk 0:00:02.4]} 32... Rxf4 {[%clk 0:01:13.2]} 33. Nxf4 {[%clk
0:00:03.3]} 33... Nf6 {[%clk 0:01:13.4]} 34. Ne5 {[%clk 0:00:03.1]} 34... g5
{[%clk 0:01:12.4]} 35. Ne6 {[%clk 0:00:03.1]} 35... g4 {[%clk 0:01:12.8]} 36.
hxg4 {[%clk 0:00:03.5]} 36... hxg4 {[%clk 0:01:12.3]} 37. Nf4 {[%clk 0:00:03.7]}
37... a5 {[%clk 0:01:08.6]} 38. Kf2 {[%clk 0:00:04.3]} 38... axb4 {[%clk
0:01:05.1]} 39. axb4 {[%clk 0:00:05.2]} 39... Rh7 {[%clk 0:00:58.2]} 40. Kg3
{[%clk 0:00:04.6]} 40... Rg7 {[%clk 0:00:54.4]} 41. Rh1 {[%clk 0:00:04.1]} 41...
Ne8 {[%clk 0:00:47.2]} 42. Rh4 {[%clk 0:00:03.7]} 42... Nf6 {[%clk 0:00:46.3]}
43. Nxg4 {[%clk 0:00:02.5]} 43... Kf7 {[%clk 0:00:44.7]} 44. Bf3 {[%clk
0:00:02.9]} 44... b6 {[%clk 0:00:43.6]} 45. Kf2 {[%clk 0:00:03.2]} 45... c5
{[%clk 0:00:42.2]} 46. Nxf6 {[%clk 0:00:03.1]} 46... Kxf6 {[%clk 0:00:42]} 47.
bxc5 {[%clk 0:00:03.4]} 47... bxc5 {[%clk 0:00:42.7]} 48. dxc5 {[%clk
0:00:04.1]} 48... Rg5 {[%clk 0:00:43.1]} 49. Nd5+ {[%clk 0:00:04.3]} 49... Ke5
{[%clk 0:00:43.1]} 50. c3 {[%clk 0:00:04.2]} 50... Rg8 {[%clk 0:00:42.2]} 51.
Rh5+ {[%clk 0:00:04.1]} 51... Ke6 {[%clk 0:00:42.5]} 52. Ke3 {[%clk 0:00:03.5]}
52... Rc8 {[%clk 0:00:38.4]} 53. Kd4 {[%clk 0:00:04]} 53... Kf7 {[%clk
0:00:36.2]} 54. Be4 {[%clk 0:00:03.9]} 54... Ra8 {[%clk 0:00:35.6]} 55. Rh7+
{[%clk 0:00:03.7]} 55... Kg8 {[%clk 0:00:35.5]} 56. Rb7 {[%clk 0:00:03]} 56...
Ra1 {[%clk 0:00:36.4]} 57. Ke5 {[%clk 0:00:03.1]} 57... Kf8 {[%clk 0:00:35.7]}
58. Kd6 {[%clk 0:00:04]} 58... Rc1 {[%clk 0:00:34.8]} 59. c6 {[%clk 0:00:04.7]}
59... Re1 {[%clk 0:00:33.1]} 60. Rb8+ {[%clk 0:00:04]} 60... Kf7 {[%clk
0:00:32.8]} 61. c7 {[%clk 0:00:04.6]} 1-0

[Event "Early-Titled-Tuesday-Blitz-October-24-2023"]
[Site "Chess.com"]
[Date "2023.10.24"]
[Round "7"]
[White "DonCiao"]
[Black "carloseduar100"]
[Result "1-0"]
[WhiteElo "2140"]
[BlackElo "2297"]
[TimeControl "180+1"]
[EndTime "9:15:42 PDT"]
[Termination "DonCiao won by checkmate"]

1. c4 {[%clk 0:03:00.9]} 1... Nf6 {[%clk 0:02:58.5]} 2. g3 {[%clk 0:03:01]} 2...
g6 {[%clk 0:02:58.2]} 3. Bg2 {[%clk 0:03:00.6]} 3... Bg7 {[%clk 0:02:59.1]} 4.
Nc3 {[%clk 0:03:00.8]} 4... O-O {[%clk 0:02:59.5]} 5. e4 {[%clk 0:03:00.7]} 5...
d6 {[%clk 0:02:59.9]} 6. Nge2 {[%clk 0:03:00.1]} 6... Nbd7 {[%clk 0:02:59.1]} 7.
O-O {[%clk 0:02:59.5]} 7... c5 {[%clk 0:02:58]} 8. d3 {[%clk 0:02:59.3]} 8... e5
{[%clk 0:02:57.7]} 9. h3 {[%clk 0:02:57.8]} 9... Re8 {[%clk 0:02:56.2]} 10. Be3
{[%clk 0:02:57.4]} 10... Nf8 {[%clk 0:02:56.7]} 11. Qd2 {[%clk 0:02:54.8]} 11...
Be6 {[%clk 0:02:57.1]} 12. Bh6 {[%clk 0:02:53.4]} 12... Qd7 {[%clk 0:02:57.4]}
13. Bxg7 {[%clk 0:02:52.4]} 13... Kxg7 {[%clk 0:02:58.3]} 14. Kh2 {[%clk
0:02:52.5]} 14... h5 {[%clk 0:02:58.1]} 15. f4 {[%clk 0:02:45.7]} 15... exf4
{[%clk 0:02:54.5]} 16. gxf4 {[%clk 0:02:40.9]} 16... N8h7 {[%clk 0:02:45.7]} 17.
Nd5 {[%clk 0:02:36.9]} 17... Bxd5 {[%clk 0:02:29.2]} 18. cxd5 {[%clk 0:02:35.9]}
18... b5 {[%clk 0:02:24.7]} 19. Rae1 {[%clk 0:02:34.4]} 19... a5 {[%clk
0:02:24.9]} 20. Ng1 {[%clk 0:02:15.8]} 20... c4 {[%clk 0:02:21]} 21. d4 {[%clk
0:02:10.1]} 21... b4 {[%clk 0:02:19.5]} 22. e5 {[%clk 0:02:09.8]} 22... Ng8
{[%clk 0:02:13.1]} 23. e6 {[%clk 0:02:06.8]} 23... Qc7 {[%clk 0:02:04.2]} 24. f5
{[%clk 0:02:01]} 24... Ngf6 {[%clk 0:01:57.4]} 25. fxg6 {[%clk 0:01:57.5]} 25...
fxg6 {[%clk 0:01:57.5]} 26. Nf3 {[%clk 0:01:50]} 26... c3 {[%clk 0:01:56.9]} 27.
bxc3 {[%clk 0:01:48.4]} 27... bxc3 {[%clk 0:01:57.8]} 28. Qc2 {[%clk 0:01:47.5]}
28... Rab8 {[%clk 0:01:57.5]} 29. Rc1 {[%clk 0:01:41.5]} 29... Rec8 {[%clk
0:01:48.3]} 30. Nh4 {[%clk 0:01:41.2]} 30... g5 {[%clk 0:01:38.8]} 31. Qg6+
{[%clk 0:01:38.4]} 31... Kh8 {[%clk 0:01:39.4]} 32. Rxf6 {[%clk 0:01:33.9]}
32... Nxf6 {[%clk 0:01:40.3]} 33. Qxf6+ {[%clk 0:01:30.9]} 33... Qg7 {[%clk
0:01:40.8]} 34. Ng6+ {[%clk 0:01:15.3]} 34... Kh7 {[%clk 0:01:39.8]} 35. Qxg7+
{[%clk 0:00:54.4]} 35... Kxg7 {[%clk 0:01:40.7]} 36. Ne7 {[%clk 0:00:54.4]}
36... Rc4 {[%clk 0:01:15.3]} 37. Nf5+ {[%clk 0:00:33.8]} 37... Kf6 {[%clk
0:01:15.5]} 38. Nxd6 {[%clk 0:00:32.3]} 38... c2 {[%clk 0:01:16.1]} 39. Nxc4
{[%clk 0:00:31.5]} 39... Rb4 {[%clk 0:01:07.5]} 40. Ne3 {[%clk 0:00:23.6]} 40...
Rxd4 {[%clk 0:01:03.1]} 41. Rxc2 {[%clk 0:00:23.8]} 41... a4 {[%clk 0:01:03.1]}
42. Re2 {[%clk 0:00:18.7]} 42... a3 {[%clk 0:00:59.6]} 43. Nc2 {[%clk
0:00:18.6]} 43... Rc4 {[%clk 0:00:44.5]} 44. e7 {[%clk 0:00:18.1]} 44... g4
{[%clk 0:00:44.5]} 45. hxg4 {[%clk 0:00:16.9]} 45... hxg4 {[%clk 0:00:44.3]} 46.
e8=Q {[%clk 0:00:16.4]} 46... g3+ {[%clk 0:00:44.5]} 47. Kg1 {[%clk 0:00:14.8]}
47... Kf5 {[%clk 0:00:29.4]} 48. Qe5+ {[%clk 0:00:13.1]} 48... Kg6 {[%clk
0:00:29.5]} 49. Qxg3+ {[%clk 0:00:12.9]} 49... Kf6 {[%clk 0:00:29.1]} 50. Qf3+
{[%clk 0:00:12.8]} 50... Kg5 {[%clk 0:00:27.3]} 51. Re5+ {[%clk 0:00:11.4]}
51... Kh6 {[%clk 0:00:25.3]} 52. Qe3+ {[%clk 0:00:10.5]} 52... Kg6 {[%clk
0:00:23.5]} 53. Qd3+ {[%clk 0:00:10]} 53... Kf6 {[%clk 0:00:22.5]} 54. Qf5+
{[%clk 0:00:10.2]} 54... Kg7 {[%clk 0:00:22.4]} 55. Re7+ {[%clk 0:00:10.2]}
55... Kh6 {[%clk 0:00:22.7]} 56. Rh7# {[%clk 0:00:09.7]} 1-0

[Event "Early-Titled-Tuesday-Blitz-October-24-2023"]
[Site "Chess.com"]
[Date "2023.10.24"]
[Round "7"]
[White "parintele_chess"]
[Black "dianamirza"]
[Result "1/2-1/2"]
[WhiteElo "2254"]
[BlackElo "2019"]
[TimeControl "180+1"]
[EndTime "9:15:42 PDT"]
[Termination "Game drawn - insufficient material"]

1. d4 {[%clk 0:02:48.9]} 1... d5 {[%clk 0:02:55.9]} 2. Bf4 {[%clk 0:02:49.4]}
2... Bf5 {[%clk 0:02:48.9]} 3. e3 {[%clk 0:02:48.4]} 3... e6 {[%clk 0:02:48.4]}
4. c4 {[%clk 0:02:48.6]} 4... c6 {[%clk 0:02:47.9]} 5. Qb3 {[%clk 0:02:49.2]}
5... Qb6 {[%clk 0:02:46.9]} 6. c5 {[%clk 0:02:49.8]} 6... Qxb3 {[%clk
0:02:46.8]} 7. axb3 {[%clk 0:02:50.7]} 7... a6 {[%clk 0:02:38]} 8. Nc3 {[%clk
0:02:49.6]} 8... Nf6 {[%clk 0:02:35.8]} 9. b4 {[%clk 0:02:41.7]} 9... h6 {[%clk
0:02:15.6]} 10. Nf3 {[%clk 0:02:28.2]} 10... g5 {[%clk 0:02:10.2]} 11. Be5
{[%clk 0:02:27.6]} 11... Be7 {[%clk 0:02:07.3]} 12. b5 {[%clk 0:02:25.7]} 12...
O-O {[%clk 0:01:57.4]} 13. Be2 {[%clk 0:01:55.7]} 13... Nbd7 {[%clk 0:01:49.3]}
14. bxc6 {[%clk 0:01:44.6]} 14... bxc6 {[%clk 0:01:33.9]} 15. Rxa6 {[%clk
0:01:44.7]} 15... Rxa6 {[%clk 0:01:29.2]} 16. Bxa6 {[%clk 0:01:45.6]} 16... Ra8
{[%clk 0:01:28]} 17. Bf1 {[%clk 0:01:02.9]} 17... Ra1+ {[%clk 0:01:10.9]} 18.
Kd2 {[%clk 0:01:02.1]} 18... g4 {[%clk 0:00:52]} 19. Nh4 {[%clk 0:00:35.8]}
19... Ne4+ {[%clk 0:00:21.5]} 20. Nxe4 {[%clk 0:00:34.4]} 20... Bxh4 {[%clk
0:00:20.9]} 21. Bg3 {[%clk 0:00:17.7]} 21... Be7 {[%clk 0:00:13.3]} 22. Nc3
{[%clk 0:00:14.5]} 22... Nf6 {[%clk 0:00:12.1]} 23. f3 {[%clk 0:00:10.7]} 23...
h5 {[%clk 0:00:11.8]} 24. h3 {[%clk 0:00:06.7]} 24... gxf3 {[%clk 0:00:09.9]}
25. gxf3 {[%clk 0:00:07.6]} 25... Nd7 {[%clk 0:00:07]} 26. Bg2 {[%clk
0:00:06.7]} 26... Rxh1 {[%clk 0:00:06.6]} 27. Bxh1 {[%clk 0:00:07.6]} 27... h4
{[%clk 0:00:06.3]} 28. Bf4 {[%clk 0:00:06.2]} 28... Bxh3 {[%clk 0:00:06.4]} 29.
e4 {[%clk 0:00:05.2]} 29... Bf1 {[%clk 0:00:04.7]} 30. b4 {[%clk 0:00:04.6]}
30... Bb5 {[%clk 0:00:03.8]} 31. Nxb5 {[%clk 0:00:02.2]} 31... cxb5 {[%clk
0:00:04.7]} 32. exd5 {[%clk 0:00:02.4]} 32... exd5 {[%clk 0:00:04.5]} 33. Bg2
{[%clk 0:00:01.5]} 33... Nf6 {[%clk 0:00:03.9]} 34. Bh3 {[%clk 0:00:01.3]} 34...
Nh5 {[%clk 0:00:02.8]} 35. Be5 {[%clk 0:00:01.7]} 35... Ng3 {[%clk 0:00:02.8]}
36. Bxg3 {[%clk 0:00:01.2]} 36... hxg3 {[%clk 0:00:03.7]} 37. f4 {[%clk
0:00:01.2]} 37... Kg7 {[%clk 0:00:03.2]} 38. Ke3 {[%clk 0:00:01.5]} 38... Kf6
{[%clk 0:00:03.6]} 39. Kf3 {[%clk 0:00:01.9]} 39... Bd8 {[%clk 0:00:02.7]} 40.
Kxg3 {[%clk 0:00:02.4]} 40... Kg6 {[%clk 0:00:03.1]} 41. Kf3 {[%clk 0:00:03]}
41... f5 {[%clk 0:00:03.4]} 42. Bg2 {[%clk 0:00:02.5]} 42... Bf6 {[%clk
0:00:03.7]} 43. Bf1 {[%clk 0:00:03]} 43... Bxd4 {[%clk 0:00:04]} 44. Bxb5 {[%clk
0:00:03.7]} 44... Bc3 {[%clk 0:00:03.8]} 45. Bc6 {[%clk 0:00:04.3]} 45... Bxb4
{[%clk 0:00:04.1]} 46. Bxd5 {[%clk 0:00:05]} 46... Bxc5 {[%clk 0:00:04.6]} 47.
Bc6 {[%clk 0:00:05.5]} 47... Bd6 {[%clk 0:00:05]} 48. Bb7 {[%clk 0:00:05.7]}
48... Bxf4 {[%clk 0:00:05.6]} 49. Ba8 {[%clk 0:00:06.6]} 49... Kf6 {[%clk
0:00:05.6]} 50. Bb7 {[%clk 0:00:07.2]} 50... Ke5 {[%clk 0:00:05.9]} 51. Bc8
{[%clk 0:00:07.8]} 51... Bc1 {[%clk 0:00:06.6]} 52. Bxf5 {[%clk 0:00:08.7]}
1/2-1/2